Department family,Entity,Date,Expense type,Expense area,Supplier,Transaction number,Amount
Department of Health,Leicestershire Partnership NHS Trust,02/09/19,Crs_NHS_LT1y -Resus Inventory Supplied.,Balance Sheet Collection,SUPPLY CHAIN CO LTD,1010112614,27212.16
Department of Health,Leicestershire Partnership NHS Trust,02/09/19,Rent,"OSL House (P54, LPT)",CABOT TRUSTEES LTD,056,41700.00
Department of Health,Leicestershire Partnership NHS Trust,02/09/19,NURSE - BAND 5 - AGENCY,3 Rubicon Close,HCL NURSING,HNSI0000124,590.50
Department of Health,Leicestershire Partnership NHS Trust,02/09/19,Nurse - Band 6 -Agency,Adult City East CMHT - Merlyn Vaz,HCL NURSING,HNSI0000124,1478.34
Department of Health,Leicestershire Partnership NHS Trust,02/09/19,Nurse - Band 6 -Agency,Adult County Charnwood CMHT - Loughborough Base,HCL NURSING,HNSI0000124,1069.88
Department of Health,Leicestershire Partnership NHS Trust,02/09/19,Nurse - Band 6 -Agency,Adult County North West Leicestershire CMHT,HCL NURSING,HNSI0000124,1070.30
Department of Health,Leicestershire Partnership NHS Trust,02/09/19,NURSE - BAND 2 - AGENCY,Agnes Unit Management,HCL NURSING,HNSI0000124,116.19
Department of Health,Leicestershire Partnership NHS Trust,02/09/19,NURSE - BAND 5 - AGENCY,Agnes Unit Management,HCL NURSING,HNSI0000124,1508.35
Department of Health,Leicestershire Partnership NHS Trust,02/09/19,NURSE - BAND 2 - AGENCY,Ashby Ward (Bradgate Unit),HCL NURSING,HNSI0000124,214.01
Department of Health,Leicestershire Partnership NHS Trust,02/09/19,NURSE - BAND 2 - AGENCY,Aston Ward (Bradgate Unit),HCL NURSING,HNSI0000124,1203.58
Department of Health,Leicestershire Partnership NHS Trust,02/09/19,NURSE - BAND 2 - AGENCY,Beaumont Ward - Bradgate Unit,HCL NURSING,HNSI0000124,343.94
Department of Health,Leicestershire Partnership NHS Trust,02/09/19,NURSE - BAND 5 - AGENCY,Beaumont Ward - Bradgate Unit,HCL NURSING,HNSI0000124,1485.34
Department of Health,Leicestershire Partnership NHS Trust,02/09/19,NURSE - BAND 2 - AGENCY,Belvoir Psychiatric Intensive Care Unit,HCL NURSING,HNSI0000124,2384.23
Department of Health,Leicestershire Partnership NHS Trust,02/09/19,NURSE - BAND 5 - AGENCY,Belvoir Psychiatric Intensive Care Unit,HCL NURSING,HNSI0000124,3069.26
Department of Health,Leicestershire Partnership NHS Trust,02/09/19,NURSE - BAND 2 - AGENCY,Bosworth Ward - Bradgate Unit,HCL NURSING,HNSI0000124,694.37
Department of Health,Leicestershire Partnership NHS Trust,02/09/19,Nurse - Band 6 -Agency,Crisis Resolution,HCL NURSING,HNSI0000124,4151.83
Department of Health,Leicestershire Partnership NHS Trust,02/09/19,NURSE - BAND 2 - AGENCY,Griffin Ward (HPC),HCL NURSING,HNSI0000124,829.65
Department of Health,Leicestershire Partnership NHS Trust,02/09/19,NURSE - BAND 5 - AGENCY,Griffin Ward (HPC),HCL NURSING,HNSI0000124,4361.23
Department of Health,Leicestershire Partnership NHS Trust,02/09/19,NURSE - BAND 2 - AGENCY,Heather Ward,HCL NURSING,HNSI0000124,403.02
Department of Health,Leicestershire Partnership NHS Trust,02/09/19,NURSE - BAND 5 - AGENCY,Heather Ward,HCL NURSING,HNSI0000124,392.89
Department of Health,Leicestershire Partnership NHS Trust,02/09/19,Nurse - Band 6 -Agency,Leicestershire Psych-oncology Service,HCL NURSING,HNSI0000124,427.95
Department of Health,Leicestershire Partnership NHS Trust,02/09/19,NURSE - BAND 2 - AGENCY,Mill Lodge,HCL NURSING,HNSI0000124,1055.81
Department of Health,Leicestershire Partnership NHS Trust,02/09/19,NURSE - BAND 2 - AGENCY,Stewart House,HCL NURSING,HNSI0000124,224.01
Department of Health,Leicestershire Partnership NHS Trust,02/09/19,NURSE - BAND 5 - AGENCY,Stewart House,HCL NURSING,HNSI0000124,587.68
Department of Health,Leicestershire Partnership NHS Trust,02/09/19,NURSE - BAND 5 - AGENCY,Thornton Ward - Bradgate Unit,HCL NURSING,HNSI0000124,339.96
Department of Health,Leicestershire Partnership NHS Trust,02/09/19,NURSE - BAND 2 - AGENCY,Watermead Ward (Bradgate Unit),HCL NURSING,HNSI0000124,859.54
Department of Health,Leicestershire Partnership NHS Trust,02/09/19,NURSE - BAND 5 - AGENCY,Watermead Ward (Bradgate Unit),HCL NURSING,HNSI0000124,1023.25
Department of Health,Leicestershire Partnership NHS Trust,02/09/19,Services / Recharges from NHS Trusts,Inter Unit I & E Distribution,UHL NHS TRUST (RWE),L0231785,176301.00
Department of Health,Leicestershire Partnership NHS Trust,02/09/19,Occupational Health,HR Operations,UHL NHS TRUST (RWE),L0231782,26622.00
Department of Health,Leicestershire Partnership NHS Trust,03/09/19,Unitary Payment,"The Agnes Unit (AKA Assessment and Treatment Centre) (P85, LPT)",ARDEN PARTNERSHIP (LEICESTER),SI0033,116243.04
Department of Health,Leicestershire Partnership NHS Trust,03/09/19,Computer Software,HR Employment Services,SOFTCAT PLC,INV02338479,28502.40
Department of Health,Leicestershire Partnership NHS Trust,04/09/19,External Data Processing / Storage,Records & information Governance,C & V DATA MANAGEMENT SRV LTD,0069197,28112.33
Department of Health,Leicestershire Partnership NHS Trust,05/09/19,Rent,Bridge Park Plaza - First Floor (LPT),RAYNSWAY PROPERTIES LTD,INV-1095.,99304.86
Department of Health,Leicestershire Partnership NHS Trust,09/09/19,Crs_NHS_LT1y -Resus Inventory Supplied.,Balance Sheet Collection,SUPPLY CHAIN CO LTD,1010116448,35909.69
Department of Health,Leicestershire Partnership NHS Trust,09/09/19,Non NHS ECRs,Out of County Income - Inpateints Project,CYGNET HC LTD,BEC0101916,32603.50
Department of Health,Leicestershire Partnership NHS Trust,09/09/19,Non NHS ECRs,Out of County Income - Inpateints Project,CYGNET (SURREY) LTD,WOK0101845,41862.75
Department of Health,Leicestershire Partnership NHS Trust,09/09/19,NURSE - BAND 5 - AGENCY,Beechwood Ward,HCL NURSING,HNSI0000125,886.12
Department of Health,Leicestershire Partnership NHS Trust,09/09/19,NURSE - BAND 5 - AGENCY,City ICS,HCL NURSING,HNSI0000125,1123.99
Department of Health,Leicestershire Partnership NHS Trust,09/09/19,NURSE - BAND 5 - AGENCY,City Planned Care - East,HCL NURSING,HNSI0000125,12975.86
Department of Health,Leicestershire Partnership NHS Trust,09/09/19,NURSE - BAND 5 - AGENCY,City Planned Care - West,HCL NURSING,HNSI0000125,10289.54
Department of Health,Leicestershire Partnership NHS Trust,09/09/19,NURSE - BAND 2 - AGENCY,Clarendon Ward,HCL NURSING,HNSI0000125,1508.08
Department of Health,Leicestershire Partnership NHS Trust,09/09/19,NURSE - BAND 2 - AGENCY,Coalville Snibston Ward,HCL NURSING,HNSI0000125,656.34
Department of Health,Leicestershire Partnership NHS Trust,09/09/19,NURSE - BAND 2 - AGENCY,Coalville Ward 2,HCL NURSING,HNSI0000125,223.60
Department of Health,Leicestershire Partnership NHS Trust,09/09/19,NURSE - BAND 5 - AGENCY,Coalville Ward 2,HCL NURSING,HNSI0000125,1539.67
Department of Health,Leicestershire Partnership NHS Trust,09/09/19,NURSE - BAND 2 - AGENCY,Coleman Ward,HCL NURSING,HNSI0000125,182.01
Department of Health,Leicestershire Partnership NHS Trust,09/09/19,NURSE - BAND 5 - AGENCY,Dalgliesh Ward,HCL NURSING,HNSI0000125,386.06
Department of Health,Leicestershire Partnership NHS Trust,09/09/19,NURSE - BAND 5 - AGENCY,"East Planned Care - Oadby,Wigston & Harborough",HCL NURSING,HNSI0000125,38.37
Department of Health,Leicestershire Partnership NHS Trust,09/09/19,NURSE - BAND 5 - AGENCY,Evening Service,HCL NURSING,HNSI0000125,603.00
Department of Health,Leicestershire Partnership NHS Trust,09/09/19,NURSE - BAND 5 - AGENCY,Fielding Palmer Nursing,HCL NURSING,HNSI0000125,3996.13
Department of Health,Leicestershire Partnership NHS Trust,09/09/19,NURSE - BAND 2 - AGENCY,Gwendolen Ward,HCL NURSING,HNSI0000125,194.67
Department of Health,Leicestershire Partnership NHS Trust,09/09/19,NURSE - BAND 5 - AGENCY,Gwendolen Ward,HCL NURSING,HNSI0000125,312.72
Department of Health,Leicestershire Partnership NHS Trust,09/09/19,NURSE - BAND 2 - AGENCY,H&B Comm Hosp East Ward,HCL NURSING,HNSI0000125,838.34
Department of Health,Leicestershire Partnership NHS Trust,09/09/19,NURSE - BAND 5 - AGENCY,H&B Comm Hosp East Ward,HCL NURSING,HNSI0000125,1675.09
Department of Health,Leicestershire Partnership NHS Trust,09/09/19,NURSE - BAND 2 - AGENCY,H&B Comm Hosp North Ward,HCL NURSING,HNSI0000125,675.60
Department of Health,Leicestershire Partnership NHS Trust,09/09/19,NURSE - BAND 5 - AGENCY,H&B Comm Hosp North Ward,HCL NURSING,HNSI0000125,1702.54
Department of Health,Leicestershire Partnership NHS Trust,09/09/19,NURSE - BAND 2 - AGENCY,Kirby Ward,HCL NURSING,HNSI0000125,415.05
Department of Health,Leicestershire Partnership NHS Trust,09/09/19,NURSE - BAND 5 - AGENCY,Kirby Ward,HCL NURSING,HNSI0000125,990.01
Department of Health,Leicestershire Partnership NHS Trust,09/09/19,NURSE - BAND 2 - AGENCY,Lough Swithland Ward,HCL NURSING,HNSI0000125,375.65
Department of Health,Leicestershire Partnership NHS Trust,09/09/19,NURSE - BAND 5 - AGENCY,Lough Swithland Ward,HCL NURSING,HNSI0000125,1354.65
Department of Health,Leicestershire Partnership NHS Trust,09/09/19,Nurse - Band 6 -Agency,MHSOP Integrated Care Team,HCL NURSING,HNSI0000125,836.93
Department of Health,Leicestershire Partnership NHS Trust,09/09/19,NURSE - BAND 5 - AGENCY,North West ICS,HCL NURSING,HNSI0000125,660.90
Department of Health,Leicestershire Partnership NHS Trust,09/09/19,NURSE - BAND 5 - AGENCY,South East ICS,HCL NURSING,HNSI0000125,1853.91
Department of Health,Leicestershire Partnership NHS Trust,09/09/19,NURSE - BAND 5 - AGENCY,St Lukes Stroke Ward,HCL NURSING,HNSI0000125,1529.33
Department of Health,Leicestershire Partnership NHS Trust,09/09/19,NURSE - BAND 2 - AGENCY,St Lukes Ward 3,HCL NURSING,HNSI0000125,211.93
Department of Health,Leicestershire Partnership NHS Trust,09/09/19,NURSE - BAND 5 - AGENCY,St Lukes Ward 3,HCL NURSING,HNSI0000125,1269.74
Department of Health,Leicestershire Partnership NHS Trust,09/09/19,NURSE - BAND 2 - AGENCY,Welford Ward,HCL NURSING,HNSI0000125,669.71
Department of Health,Leicestershire Partnership NHS Trust,09/09/19,NURSE - BAND 2 - AGENCY,Beechwood Ward,HCL NURSING,HNSI0000115,254.97
Department of Health,Leicestershire Partnership NHS Trust,09/09/19,NURSE - BAND 5 - AGENCY,Beechwood Ward,HCL NURSING,HNSI0000115,2113.54
Department of Health,Leicestershire Partnership NHS Trust,09/09/19,NURSE - BAND 5 - AGENCY,City ICS,HCL NURSING,HNSI0000115,2915.31
Department of Health,Leicestershire Partnership NHS Trust,09/09/19,NURSE - BAND 5 - AGENCY,City Planned Care - East,HCL NURSING,HNSI0000115,14029.64
Department of Health,Leicestershire Partnership NHS Trust,09/09/19,NURSE - BAND 5 - AGENCY,City Planned Care - West,HCL NURSING,HNSI0000115,9925.38
Department of Health,Leicestershire Partnership NHS Trust,09/09/19,NURSE - BAND 2 - AGENCY,Clarendon Ward,HCL NURSING,HNSI0000115,2057.55
Department of Health,Leicestershire Partnership NHS Trust,09/09/19,NURSE - BAND 5 - AGENCY,Clarendon Ward,HCL NURSING,HNSI0000115,923.73
Department of Health,Leicestershire Partnership NHS Trust,09/09/19,NURSE - BAND 2 - AGENCY,Coalville Snibston Ward,HCL NURSING,HNSI0000115,1319.51
Department of Health,Leicestershire Partnership NHS Trust,09/09/19,NURSE - BAND 2 - AGENCY,Coalville Ward 2,HCL NURSING,HNSI0000115,1042.18
Department of Health,Leicestershire Partnership NHS Trust,09/09/19,NURSE - BAND 5 - AGENCY,Coalville Ward 2,HCL NURSING,HNSI0000115,1389.48
Department of Health,Leicestershire Partnership NHS Trust,09/09/19,NURSE - BAND 5 - AGENCY,Dalgliesh Ward,HCL NURSING,HNSI0000115,386.06
Department of Health,Leicestershire Partnership NHS Trust,09/09/19,NURSE - BAND 5 - AGENCY,"East Planned Care - Oadby,Wigston & Harborough",HCL NURSING,HNSI0000115,1368.32
Department of Health,Leicestershire Partnership NHS Trust,09/09/19,NURSE - BAND 5 - AGENCY,Evening Service,HCL NURSING,HNSI0000115,832.03
Department of Health,Leicestershire Partnership NHS Trust,09/09/19,NURSE - BAND 2 - AGENCY,Fielding Palmer Nursing,HCL NURSING,HNSI0000115,106.77
Department of Health,Leicestershire Partnership NHS Trust,09/09/19,NURSE - BAND 5 - AGENCY,Fielding Palmer Nursing,HCL NURSING,HNSI0000115,4643.07
Department of Health,Leicestershire Partnership NHS Trust,09/09/19,NURSE - BAND 2 - AGENCY,H&B Comm Hosp East Ward,HCL NURSING,HNSI0000115,789.79
Department of Health,Leicestershire Partnership NHS Trust,09/09/19,NURSE - BAND 5 - AGENCY,H&B Comm Hosp East Ward,HCL NURSING,HNSI0000115,816.63
Department of Health,Leicestershire Partnership NHS Trust,09/09/19,NURSE - BAND 2 - AGENCY,H&B Comm Hosp North Ward,HCL NURSING,HNSI0000115,393.49
Department of Health,Leicestershire Partnership NHS Trust,09/09/19,NURSE - BAND 5 - AGENCY,H&B Comm Hosp North Ward,HCL NURSING,HNSI0000115,1533.42
Department of Health,Leicestershire Partnership NHS Trust,09/09/19,NURSE - BAND 2 - AGENCY,Kirby Ward,HCL NURSING,HNSI0000115,194.67
Department of Health,Leicestershire Partnership NHS Trust,09/09/19,NURSE - BAND 5 - AGENCY,Kirby Ward,HCL NURSING,HNSI0000115,605.16
Department of Health,Leicestershire Partnership NHS Trust,09/09/19,NURSE - BAND 2 - AGENCY,Lough Swithland Ward,HCL NURSING,HNSI0000115,1313.23
Department of Health,Leicestershire Partnership NHS Trust,09/09/19,NURSE - BAND 5 - AGENCY,Lough Swithland Ward,HCL NURSING,HNSI0000115,1957.78
Department of Health,Leicestershire Partnership NHS Trust,09/09/19,Nurse - Band 6 -Agency,MHSOP Integrated Care Team,HCL NURSING,HNSI0000115,836.93
Department of Health,Leicestershire Partnership NHS Trust,09/09/19,NURSE - BAND 5 - AGENCY,North West ICS,HCL NURSING,HNSI0000115,203.41
Department of Health,Leicestershire Partnership NHS Trust,09/09/19,NURSE - BAND 5 - AGENCY,Rutland Ward Nursing,HCL NURSING,HNSI0000115,449.57
Department of Health,Leicestershire Partnership NHS Trust,09/09/19,NURSE - BAND 5 - AGENCY,South East ICS,HCL NURSING,HNSI0000115,3489.86
Department of Health,Leicestershire Partnership NHS Trust,09/09/19,NURSE - BAND 2 - AGENCY,St Lukes Stroke Ward,HCL NURSING,HNSI0000115,1523.65
Department of Health,Leicestershire Partnership NHS Trust,09/09/19,NURSE - BAND 5 - AGENCY,St Lukes Stroke Ward,HCL NURSING,HNSI0000115,1950.23
Department of Health,Leicestershire Partnership NHS Trust,09/09/19,NURSE - BAND 5 - AGENCY,St Lukes Ward 3,HCL NURSING,HNSI0000115,3095.67
Department of Health,Leicestershire Partnership NHS Trust,09/09/19,NURSE - BAND 2 - AGENCY,Beechwood Ward,HCL NURSING,HNSI0000121,433.86
Department of Health,Leicestershire Partnership NHS Trust,09/09/19,NURSE - BAND 5 - AGENCY,Beechwood Ward,HCL NURSING,HNSI0000121,1820.61
Department of Health,Leicestershire Partnership NHS Trust,09/09/19,NURSE - BAND 5 - AGENCY,City ICS,HCL NURSING,HNSI0000121,1123.99
Department of Health,Leicestershire Partnership NHS Trust,09/09/19,NURSE - BAND 5 - AGENCY,City Planned Care - East,HCL NURSING,HNSI0000121,14710.01
Department of Health,Leicestershire Partnership NHS Trust,09/09/19,NURSE - BAND 5 - AGENCY,City Planned Care - West,HCL NURSING,HNSI0000121,15986.12
Department of Health,Leicestershire Partnership NHS Trust,09/09/19,Nurse - Band 6 -Agency,City West CMHT MHSOP,HCL NURSING,HNSI0000121,3209.63
Department of Health,Leicestershire Partnership NHS Trust,09/09/19,NURSE - BAND 2 - AGENCY,Clarendon Ward,HCL NURSING,HNSI0000121,1647.43
Department of Health,Leicestershire Partnership NHS Trust,09/09/19,NURSE - BAND 5 - AGENCY,Clarendon Ward,HCL NURSING,HNSI0000121,1556.00
Department of Health,Leicestershire Partnership NHS Trust,09/09/19,NURSE - BAND 2 - AGENCY,Coalville Snibston Ward,HCL NURSING,HNSI0000121,840.49
Department of Health,Leicestershire Partnership NHS Trust,09/09/19,NURSE - BAND 5 - AGENCY,Coalville Snibston Ward,HCL NURSING,HNSI0000121,1093.08
Department of Health,Leicestershire Partnership NHS Trust,09/09/19,NURSE - BAND 5 - AGENCY,Coalville Ward 2,HCL NURSING,HNSI0000121,1762.11
Department of Health,Leicestershire Partnership NHS Trust,09/09/19,NURSE - BAND 5 - AGENCY,Dalgliesh Ward,HCL NURSING,HNSI0000121,386.06
Department of Health,Leicestershire Partnership NHS Trust,09/09/19,NURSE - BAND 5 - AGENCY,"East Planned Care - Oadby,Wigston & Harborough",HCL NURSING,HNSI0000121,1639.31
Department of Health,Leicestershire Partnership NHS Trust,09/09/19,NURSE - BAND 5 - AGENCY,Evening Service,HCL NURSING,HNSI0000121,1110.70
Department of Health,Leicestershire Partnership NHS Trust,09/09/19,NURSE - BAND 5 - AGENCY,Fielding Palmer Nursing,HCL NURSING,HNSI0000121,1676.53
Department of Health,Leicestershire Partnership NHS Trust,09/09/19,NURSE - BAND 2 - AGENCY,Gwendolen Ward,HCL NURSING,HNSI0000121,700.00
Department of Health,Leicestershire Partnership NHS Trust,09/09/19,NURSE - BAND 5 - AGENCY,Gwendolen Ward,HCL NURSING,HNSI0000121,1060.18
Department of Health,Leicestershire Partnership NHS Trust,09/09/19,NURSE - BAND 2 - AGENCY,H&B Comm Hosp East Ward,HCL NURSING,HNSI0000121,1855.95
Department of Health,Leicestershire Partnership NHS Trust,09/09/19,NURSE - BAND 5 - AGENCY,H&B Comm Hosp East Ward,HCL NURSING,HNSI0000121,1346.12
Department of Health,Leicestershire Partnership NHS Trust,09/09/19,NURSE - BAND 2 - AGENCY,H&B Comm Hosp North Ward,HCL NURSING,HNSI0000121,708.45
Department of Health,Leicestershire Partnership NHS Trust,09/09/19,NURSE - BAND 5 - AGENCY,H&B Comm Hosp North Ward,HCL NURSING,HNSI0000121,663.86
Department of Health,Leicestershire Partnership NHS Trust,09/09/19,NURSE - BAND 2 - AGENCY,Kirby Ward,HCL NURSING,HNSI0000121,408.78
Department of Health,Leicestershire Partnership NHS Trust,09/09/19,NURSE - BAND 5 - AGENCY,Kirby Ward,HCL NURSING,HNSI0000121,1302.72
Department of Health,Leicestershire Partnership NHS Trust,09/09/19,NURSE - BAND 2 - AGENCY,Lough Swithland Ward,HCL NURSING,HNSI0000121,254.97
Department of Health,Leicestershire Partnership NHS Trust,09/09/19,NURSE - BAND 5 - AGENCY,Lough Swithland Ward,HCL NURSING,HNSI0000121,1175.56
Department of Health,Leicestershire Partnership NHS Trust,09/09/19,Nurse - Band 6 -Agency,MHSOP Integrated Care Team,HCL NURSING,HNSI0000121,836.93
Department of Health,Leicestershire Partnership NHS Trust,09/09/19,NURSE - BAND 5 - AGENCY,North West ICS,HCL NURSING,HNSI0000121,279.14
Department of Health,Leicestershire Partnership NHS Trust,09/09/19,NURSE - BAND 5 - AGENCY,South East ICS,HCL NURSING,HNSI0000121,4680.05
Department of Health,Leicestershire Partnership NHS Trust,09/09/19,NURSE - BAND 2 - AGENCY,St Lukes Stroke Ward,HCL NURSING,HNSI0000121,423.87
Department of Health,Leicestershire Partnership NHS Trust,09/09/19,NURSE - BAND 5 - AGENCY,St Lukes Stroke Ward,HCL NURSING,HNSI0000121,1471.11
Department of Health,Leicestershire Partnership NHS Trust,09/09/19,NURSE - BAND 2 - AGENCY,St Lukes Ward 3,HCL NURSING,HNSI0000121,106.77
Department of Health,Leicestershire Partnership NHS Trust,09/09/19,NURSE - BAND 5 - AGENCY,St Lukes Ward 3,HCL NURSING,HNSI0000121,1833.64
Department of Health,Leicestershire Partnership NHS Trust,09/09/19,NURSE - BAND 2 - AGENCY,Welford Ward,HCL NURSING,HNSI0000121,276.88
Department of Health,Leicestershire Partnership NHS Trust,09/09/19,NURSE - BAND 5 - AGENCY,Welford Ward,HCL NURSING,HNSI0000121,326.24
Department of Health,Leicestershire Partnership NHS Trust,10/09/19,Payroll Deductions - Kiddi Vouchers,Balance Sheet Collection,WIDER PLAN LTD,5108643,36575.28
Department of Health,Leicestershire Partnership NHS Trust,10/09/19,WIP Project Not in BS - Buildings excl Dwellings,Work in Progress,INTERSERVE CONSTRUCTION LTD,VEM55089,61284.20
Department of Health,Leicestershire Partnership NHS Trust,11/09/19,NURSE - BAND 2 - AGENCY,Beechwood Ward,HCL NURSING,HNSI0000132,626.56
Department of Health,Leicestershire Partnership NHS Trust,11/09/19,NURSE - BAND 5 - AGENCY,Beechwood Ward,HCL NURSING,HNSI0000132,980.04
Department of Health,Leicestershire Partnership NHS Trust,11/09/19,NURSE - BAND 5 - AGENCY,City ICS,HCL NURSING,HNSI0000132,1226.00
Department of Health,Leicestershire Partnership NHS Trust,11/09/19,NURSE - BAND 2 - AGENCY,City Planned Care - East,HCL NURSING,HNSI0000132,17301.88
Department of Health,Leicestershire Partnership NHS Trust,11/09/19,NURSE - BAND 5 - AGENCY,City Planned Care - West,HCL NURSING,HNSI0000132,12290.60
Department of Health,Leicestershire Partnership NHS Trust,11/09/19,Nurse - Band 6 -Agency,City West CMHT MHSOP,HCL NURSING,HNSI0000132,2268.18
Department of Health,Leicestershire Partnership NHS Trust,11/09/19,NURSE - BAND 2 - AGENCY,Clarendon Ward,HCL NURSING,HNSI0000132,1546.38
Department of Health,Leicestershire Partnership NHS Trust,11/09/19,NURSE - BAND 5 - AGENCY,Clarendon Ward,HCL NURSING,HNSI0000132,837.96
Department of Health,Leicestershire Partnership NHS Trust,11/09/19,NURSE - BAND 2 - AGENCY,Coalville Snibston Ward,HCL NURSING,HNSI0000132,845.91
Department of Health,Leicestershire Partnership NHS Trust,11/09/19,NURSE - BAND 5 - AGENCY,Coalville Snibston Ward,HCL NURSING,HNSI0000132,395.13
Department of Health,Leicestershire Partnership NHS Trust,11/09/19,NURSE - BAND 2 - AGENCY,Coalville Ward 2,HCL NURSING,HNSI0000132,451.50
Department of Health,Leicestershire Partnership NHS Trust,11/09/19,NURSE - BAND 2 - AGENCY,Coleman Ward,HCL NURSING,HNSI0000132,552.82
Department of Health,Leicestershire Partnership NHS Trust,11/09/19,NURSE - BAND 5 - AGENCY,"East Planned Care - Oadby,Wigston & Harborough",HCL NURSING,HNSI0000132,1520.21
Department of Health,Leicestershire Partnership NHS Trust,11/09/19,NURSE - BAND 5 - AGENCY,Evening Service,HCL NURSING,HNSI0000132,397.02
Department of Health,Leicestershire Partnership NHS Trust,11/09/19,NURSE - BAND 5 - AGENCY,Fielding Palmer Nursing,HCL NURSING,HNSI0000132,4073.08
Department of Health,Leicestershire Partnership NHS Trust,11/09/19,NURSE - BAND 5 - AGENCY,Gwendolen Ward,HCL NURSING,HNSI0000132,302.58
Department of Health,Leicestershire Partnership NHS Trust,11/09/19,NURSE - BAND 2 - AGENCY,H&B Comm Hosp East Ward,HCL NURSING,HNSI0000132,1253.67
Department of Health,Leicestershire Partnership NHS Trust,11/09/19,NURSE - BAND 5 - AGENCY,H&B Comm Hosp East Ward,HCL NURSING,HNSI0000132,1580.77
Department of Health,Leicestershire Partnership NHS Trust,11/09/19,NURSE - BAND 2 - AGENCY,H&B Comm Hosp North Ward,HCL NURSING,HNSI0000132,434.36
Department of Health,Leicestershire Partnership NHS Trust,11/09/19,NURSE - BAND 5 - AGENCY,H&B Comm Hosp North Ward,HCL NURSING,HNSI0000132,419.12
Department of Health,Leicestershire Partnership NHS Trust,11/09/19,NURSE - BAND 2 - AGENCY,Kirby Ward,HCL NURSING,HNSI0000132,909.58
Department of Health,Leicestershire Partnership NHS Trust,11/09/19,NURSE - BAND 5 - AGENCY,Kirby Ward,HCL NURSING,HNSI0000132,1233.97
Department of Health,Leicestershire Partnership NHS Trust,11/09/19,NURSE - BAND 5 - AGENCY,Lough Swithland Ward,HCL NURSING,HNSI0000132,772.13
Department of Health,Leicestershire Partnership NHS Trust,11/09/19,Nurse - Band 6 -Agency,MHSOP Integrated Care Team,HCL NURSING,HNSI0000132,1868.96
Department of Health,Leicestershire Partnership NHS Trust,11/09/19,NURSE - BAND 5 - AGENCY,North West ICS,HCL NURSING,HNSI0000132,98.17
Department of Health,Leicestershire Partnership NHS Trust,11/09/19,NURSE - BAND 5 - AGENCY,Rutland Ward Nursing,HCL NURSING,HNSI0000132,325.50
Department of Health,Leicestershire Partnership NHS Trust,11/09/19,NURSE - BAND 5 - AGENCY,South East ICS,HCL NURSING,HNSI0000132,3757.77
Department of Health,Leicestershire Partnership NHS Trust,11/09/19,NURSE - BAND 2 - AGENCY,St Lukes Stroke Ward,HCL NURSING,HNSI0000132,329.73
Department of Health,Leicestershire Partnership NHS Trust,11/09/19,NURSE - BAND 5 - AGENCY,St Lukes Stroke Ward,HCL NURSING,HNSI0000132,615.97
Department of Health,Leicestershire Partnership NHS Trust,11/09/19,NURSE - BAND 2 - AGENCY,St Lukes Ward 3,HCL NURSING,HNSI0000132,144.97
Department of Health,Leicestershire Partnership NHS Trust,11/09/19,NURSE - BAND 5 - AGENCY,St Lukes Ward 3,HCL NURSING,HNSI0000132,3167.09
Department of Health,Leicestershire Partnership NHS Trust,11/09/19,NURSE - BAND 2 - AGENCY,Welford Ward,HCL NURSING,HNSI0000132,248.53
Department of Health,Leicestershire Partnership NHS Trust,11/09/19,NURSE - BAND 5 - AGENCY,West Planned Care  - Hinckley Hub,HCL NURSING,HNSI0000132,300.79
Department of Health,Leicestershire Partnership NHS Trust,16/09/19,Nurse - Band 6 -Agency,Adult City East CMHT - Merlyn Vaz,HCL NURSING,HNSI0000138,1319.32
Department of Health,Leicestershire Partnership NHS Trust,16/09/19,Nurse - Band 6 -Agency,Adult County North West Leicestershire CMHT,HCL NURSING,HNSI0000138,641.93
Department of Health,Leicestershire Partnership NHS Trust,16/09/19,NURSE - BAND 2 - AGENCY,Agnes Unit Management,HCL NURSING,HNSI0000138,548.95
Department of Health,Leicestershire Partnership NHS Trust,16/09/19,NURSE - BAND 5 - AGENCY,Agnes Unit Management,HCL NURSING,HNSI0000138,932.52
Department of Health,Leicestershire Partnership NHS Trust,16/09/19,NURSE - BAND 5 - AGENCY,Ashby Ward (Bradgate Unit),HCL NURSING,HNSI0000138,339.96
Department of Health,Leicestershire Partnership NHS Trust,16/09/19,NURSE - BAND 2 - AGENCY,Aston Ward (Bradgate Unit),HCL NURSING,HNSI0000138,415.63
Department of Health,Leicestershire Partnership NHS Trust,16/09/19,NURSE - BAND 2 - AGENCY,Beaumont Ward - Bradgate Unit,HCL NURSING,HNSI0000138,168.41
Department of Health,Leicestershire Partnership NHS Trust,16/09/19,NURSE - BAND 5 - AGENCY,Beaumont Ward - Bradgate Unit,HCL NURSING,HNSI0000138,740.75
Department of Health,Leicestershire Partnership NHS Trust,16/09/19,NURSE - BAND 2 - AGENCY,Belvoir Psychiatric Intensive Care Unit,HCL NURSING,HNSI0000138,4273.86
Department of Health,Leicestershire Partnership NHS Trust,16/09/19,NURSE - BAND 5 - AGENCY,Belvoir Psychiatric Intensive Care Unit,HCL NURSING,HNSI0000138,1702.08
Department of Health,Leicestershire Partnership NHS Trust,16/09/19,NURSE - BAND 2 - AGENCY,Bosworth Ward - Bradgate Unit,HCL NURSING,HNSI0000138,406.24
Department of Health,Leicestershire Partnership NHS Trust,16/09/19,NURSE - BAND 5 - AGENCY,Bosworth Ward - Bradgate Unit,HCL NURSING,HNSI0000138,329.81
Department of Health,Leicestershire Partnership NHS Trust,16/09/19,Nurse - Band 6 -Agency,Crisis Resolution,HCL NURSING,HNSI0000138,2256.26
Department of Health,Leicestershire Partnership NHS Trust,16/09/19,NURSE - BAND 5 - AGENCY,Griffin Ward (HPC),HCL NURSING,HNSI0000138,2769.38
Department of Health,Leicestershire Partnership NHS Trust,16/09/19,NURSE - BAND 2 - AGENCY,Heather Ward,HCL NURSING,HNSI0000138,1364.64
Department of Health,Leicestershire Partnership NHS Trust,16/09/19,NURSE - BAND 5 - AGENCY,Heather Ward,HCL NURSING,HNSI0000138,1522.93
Department of Health,Leicestershire Partnership NHS Trust,16/09/19,NURSE - BAND 2 - AGENCY,Leicestershire Psych-oncology Service,HCL NURSING,HNSI0000138,427.95
Department of Health,Leicestershire Partnership NHS Trust,16/09/19,NURSE - BAND 2 - AGENCY,Maple Ward,HCL NURSING,HNSI0000138,233.33
Department of Health,Leicestershire Partnership NHS Trust,16/09/19,Nurse - Band 6 -Agency,Mental Health Triage Team,HCL NURSING,HNSI0000138,1037.81
Department of Health,Leicestershire Partnership NHS Trust,16/09/19,NURSE - BAND 2 - AGENCY,Mill Lodge,HCL NURSING,HNSI0000138,1097.77
Department of Health,Leicestershire Partnership NHS Trust,16/09/19,NURSE - BAND 5 - AGENCY,Mill Lodge,HCL NURSING,HNSI0000138,1146.86
Department of Health,Leicestershire Partnership NHS Trust,16/09/19,NURSE - BAND 2 - AGENCY,Place Of Safety Assessment Unit,HCL NURSING,HNSI0000138,218.24
Department of Health,Leicestershire Partnership NHS Trust,16/09/19,NURSE - BAND 5 - AGENCY,Stewart House,HCL NURSING,HNSI0000138,883.08
Department of Health,Leicestershire Partnership NHS Trust,16/09/19,NURSE - BAND 2 - AGENCY,Watermead Ward (Bradgate Unit),HCL NURSING,HNSI0000138,220.57
Department of Health,Leicestershire Partnership NHS Trust,16/09/19,Crs_NHS_LT1y -Resus Inventory Supplied.,Balance Sheet Collection,SUPPLY CHAIN CO LTD,1010124059,30355.46
Department of Health,Leicestershire Partnership NHS Trust,16/09/19,Insurance Costs,Chief Executives Office,NHS LITIGATION AUTHORITY,SICC/00147626,83439.60
Department of Health,Leicestershire Partnership NHS Trust,16/09/19,Internal Printing (machines and ink),Estates & Facilities Central,LEXMARK INTERNATIONAL LTD,900650006816,35301.50
Department of Health,Leicestershire Partnership NHS Trust,17/09/19,WIP Project Not in BS - Buildings excl Dwellings,Work in Progress,INTERSERVE CONSTRUCTION LTD,VEM55091,387103.54
Department of Health,Leicestershire Partnership NHS Trust,19/09/19,Landline Telephone Rental / Calls,"Beaumont Leys Health Centre (P94, LPT)",VIRGIN MEDIA BUSINESS,853083001/004/0919,437.05
Department of Health,Leicestershire Partnership NHS Trust,19/09/19,Landline Telephone Rental / Calls,Belgrave Health Centre (CHP),VIRGIN MEDIA BUSINESS,853083001/004/0919,434.11
Department of Health,Leicestershire Partnership NHS Trust,19/09/19,Landline Telephone Rental / Calls,"Bennion Centre (including Forest Grange Day Unit) (P8, LPT)",VIRGIN MEDIA BUSINESS,853083001/004/0919,7.74
Department of Health,Leicestershire Partnership NHS Trust,19/09/19,Landline Telephone Rental / Calls,"Bradgate Unit (including Glenvale day Unit) (P7, LPT)",VIRGIN MEDIA BUSINESS,853083001/004/0919,7820.41
Department of Health,Leicestershire Partnership NHS Trust,19/09/19,Landline Telephone Rental / Calls,Braunstone Health and Social Care Centre (Part) (PROPCO),VIRGIN MEDIA BUSINESS,853083001/004/0919,1313.84
Department of Health,Leicestershire Partnership NHS Trust,19/09/19,Landline Telephone Rental / Calls,Bridge Park Plaza - First Floor (LPT),VIRGIN MEDIA BUSINESS,853083001/004/0919,4158.78
Department of Health,Leicestershire Partnership NHS Trust,19/09/19,Landline Telephone Rental / Calls,"Coalville Community Hospital (P138, LPT)",VIRGIN MEDIA BUSINESS,853083001/004/0919,1480.98
Department of Health,Leicestershire Partnership NHS Trust,19/09/19,Landline Telephone Rental / Calls,"Coalville Health Centre (P121, LPT)",VIRGIN MEDIA BUSINESS,853083001/004/0919,383.65
Department of Health,Leicestershire Partnership NHS Trust,19/09/19,Landline Telephone Rental / Calls,County Hall,VIRGIN MEDIA BUSINESS,853083001/004/0919,1394.57
Department of Health,Leicestershire Partnership NHS Trust,19/09/19,Landline Telephone Rental / Calls,Estates & Facilities Central,VIRGIN MEDIA BUSINESS,853083001/004/0919,4140.47
Department of Health,Leicestershire Partnership NHS Trust,19/09/19,Landline Telephone Rental / Calls,"Evington Centre (P6, LPT)",VIRGIN MEDIA BUSINESS,853083001/004/0919,1595.92
Department of Health,Leicestershire Partnership NHS Trust,19/09/19,Landline Telephone Rental / Calls,HIS,VIRGIN MEDIA BUSINESS,853083001/004/0919,3154.24
Department of Health,Leicestershire Partnership NHS Trust,19/09/19,Landline Telephone Rental / Calls,"Hawthorne Centre - Coalville (P14, LPT)",VIRGIN MEDIA BUSINESS,853083001/004/0919,518.53
Department of Health,Leicestershire Partnership NHS Trust,19/09/19,Landline Telephone Rental / Calls,Hinckley & District Hospital (PROPCO),VIRGIN MEDIA BUSINESS,853083001/004/0919,1440.88
Department of Health,Leicestershire Partnership NHS Trust,19/09/19,Landline Telephone Rental / Calls,"Hinckley and Bosworth Community Hospital (Sunnyside) (P133, LPT)",VIRGIN MEDIA BUSINESS,853083001/004/0919,1072.74
Department of Health,Leicestershire Partnership NHS Trust,19/09/19,Landline Telephone Rental / Calls,Hood Park Leisure Centre Clinic,VIRGIN MEDIA BUSINESS,853083001/004/0919,49.56
Department of Health,Leicestershire Partnership NHS Trust,19/09/19,Landline Telephone Rental / Calls,"Hynca Lodge (P33, LPT)",VIRGIN MEDIA BUSINESS,853083001/004/0919,375.58
Department of Health,Leicestershire Partnership NHS Trust,19/09/19,Landline Telephone Rental / Calls,"Legion House, Ashby",VIRGIN MEDIA BUSINESS,853083001/004/0919,71.41
Department of Health,Leicestershire Partnership NHS Trust,19/09/19,Landline Telephone Rental / Calls,Loughborough Health Centre (PROPCO),VIRGIN MEDIA BUSINESS,853083001/004/0919,7.58
Department of Health,Leicestershire Partnership NHS Trust,19/09/19,Landline Telephone Rental / Calls,"Loughborough Hospital (P136, LPT)",VIRGIN MEDIA BUSINESS,853083001/004/0919,4710.32
Department of Health,Leicestershire Partnership NHS Trust,19/09/19,Landline Telephone Rental / Calls,Mawson House (LPT),VIRGIN MEDIA BUSINESS,853083001/004/0919,482.94
Department of Health,Leicestershire Partnership NHS Trust,19/09/19,Landline Telephone Rental / Calls,Melbourne Centre (Pt Grnd flr) (PROPCO),VIRGIN MEDIA BUSINESS,853083001/004/0919,6.45
Department of Health,Leicestershire Partnership NHS Trust,19/09/19,Landline Telephone Rental / Calls,Melton Mowbray Hospital (previously St. Mary's) (PROPCO),VIRGIN MEDIA BUSINESS,853083001/004/0919,1655.46
Department of Health,Leicestershire Partnership NHS Trust,19/09/19,Landline Telephone Rental / Calls,Merlyn Vaz Centre (CHP),VIRGIN MEDIA BUSINESS,853083001/004/0919,2167.54
Department of Health,Leicestershire Partnership NHS Trust,19/09/19,Landline Telephone Rental / Calls,"Mett Centre (P49, LPT)",VIRGIN MEDIA BUSINESS,853083001/004/0919,87.04
Department of Health,Leicestershire Partnership NHS Trust,19/09/19,Landline Telephone Rental / Calls,NSPCC Training Cente,VIRGIN MEDIA BUSINESS,853083001/004/0919,177.50
Department of Health,Leicestershire Partnership NHS Trust,19/09/19,Landline Telephone Rental / Calls,New Parks Health Centre (PROPCO),VIRGIN MEDIA BUSINESS,853083001/004/0919,1328.84
Department of Health,Leicestershire Partnership NHS Trust,19/09/19,Landline Telephone Rental / Calls,"OSL House (P54, LPT)",VIRGIN MEDIA BUSINESS,853083001/004/0919,1495.61
Department of Health,Leicestershire Partnership NHS Trust,19/09/19,Landline Telephone Rental / Calls,"Orchard Resource Centre (P15, LPT)",VIRGIN MEDIA BUSINESS,853083001/004/0919,556.30
Department of Health,Leicestershire Partnership NHS Trust,19/09/19,Landline Telephone Rental / Calls,Pasley Road Health Centre (PROPCO),VIRGIN MEDIA BUSINESS,853083001/004/0919,228.60
Department of Health,Leicestershire Partnership NHS Trust,19/09/19,Landline Telephone Rental / Calls,"Prince Philip House (P96, LPT)",VIRGIN MEDIA BUSINESS,853083001/004/0919,1654.28
Department of Health,Leicestershire Partnership NHS Trust,19/09/19,Landline Telephone Rental / Calls,Rushey Mead Health Centre (PROPCO),VIRGIN MEDIA BUSINESS,853083001/004/0919,71.42
Department of Health,Leicestershire Partnership NHS Trust,19/09/19,Landline Telephone Rental / Calls,"Shepshed Health Centre (P123, LPT)",VIRGIN MEDIA BUSINESS,853083001/004/0919,9.91
Department of Health,Leicestershire Partnership NHS Trust,19/09/19,Landline Telephone Rental / Calls,"Springfield Road Health Centre (P92, LPT)",VIRGIN MEDIA BUSINESS,853083001/004/0919,397.92
Department of Health,Leicestershire Partnership NHS Trust,19/09/19,Landline Telephone Rental / Calls,St Johns House (1st Floor) (PROPCO),VIRGIN MEDIA BUSINESS,853083001/004/0919,1522.95
Department of Health,Leicestershire Partnership NHS Trust,19/09/19,Landline Telephone Rental / Calls,St Peters Primary Care Centre (CHP),VIRGIN MEDIA BUSINESS,853083001/004/0919,2472.19
Department of Health,Leicestershire Partnership NHS Trust,19/09/19,Landline Telephone Rental / Calls,"Stewart House (P61, LPT)",VIRGIN MEDIA BUSINESS,853083001/004/0919,7.74
Department of Health,Leicestershire Partnership NHS Trust,19/09/19,Landline Telephone Rental / Calls,"Swithland House - London Road 352 (P44, LPT)",VIRGIN MEDIA BUSINESS,853083001/004/0919,399.37
Department of Health,Leicestershire Partnership NHS Trust,19/09/19,Landline Telephone Rental / Calls,"The Cedars (P19, LPT)",VIRGIN MEDIA BUSINESS,853083001/004/0919,612.62
Department of Health,Leicestershire Partnership NHS Trust,19/09/19,Landline Telephone Rental / Calls,"The Willows - Cordelia Close (P22, LPT)",VIRGIN MEDIA BUSINESS,853083001/004/0919,444.46
Department of Health,Leicestershire Partnership NHS Trust,19/09/19,Landline Telephone Rental / Calls,Uppingham Road Health Centre (PROPCO),VIRGIN MEDIA BUSINESS,853083001/004/0919,262.76
Department of Health,Leicestershire Partnership NHS Trust,19/09/19,Landline Telephone Rental / Calls,"Valentine Centre (P3, LPT)",VIRGIN MEDIA BUSINESS,853083001/004/0919,1725.38
Department of Health,Leicestershire Partnership NHS Trust,19/09/19,Landline Telephone Rental / Calls,Warren Park Way 25 (PROPCO),VIRGIN MEDIA BUSINESS,853083001/004/0919,973.57
Department of Health,Leicestershire Partnership NHS Trust,19/09/19,Landline Telephone Rental / Calls,"Westcotes Group -Westcotes House (P78, LPT)",VIRGIN MEDIA BUSINESS,853083001/004/0919,1364.65
Department of Health,Leicestershire Partnership NHS Trust,19/09/19,Landline Telephone Rental / Calls,Westcotes Health Centre (CHP),VIRGIN MEDIA BUSINESS,853083001/004/0919,783.38
Department of Health,Leicestershire Partnership NHS Trust,19/09/19,Landline Telephone Rental / Calls,"Winstanley Drive Health Centre (P8, LPT)",VIRGIN MEDIA BUSINESS,853083001/004/0919,453.85
Department of Health,Leicestershire Partnership NHS Trust,19/09/19,UHL Facilities Management SLA,Estates Central Invoices To Recharge,UHL NHS TRUST (RWE),L0232193,827106.58
Department of Health,Leicestershire Partnership NHS Trust,20/09/19,Network Costs - WAN Maint,HIS Infrastructure,VIRGIN MEDIA BUSINESS,262421-159,45570.52
Department of Health,Leicestershire Partnership NHS Trust,23/09/19,Crs_NHS_LT1y -Resus Inventory Supplied.,Balance Sheet Collection,SUPPLY CHAIN CO LTD,1010126374,30684.37
Department of Health,Leicestershire Partnership NHS Trust,23/09/19,Nurse - Band 6 -Agency,Adult City East CMHT - Merlyn Vaz,HCL NURSING,HNSI0000145,4710.70
Department of Health,Leicestershire Partnership NHS Trust,23/09/19,NURSE - BAND 5 - AGENCY,Agnes Unit Management,HCL NURSING,HNSI0000145,646.36
Department of Health,Leicestershire Partnership NHS Trust,23/09/19,NURSE - BAND 2 - AGENCY,Ashby Ward (Bradgate Unit),HCL NURSING,HNSI0000145,474.37
Department of Health,Leicestershire Partnership NHS Trust,23/09/19,NURSE - BAND 2 - AGENCY,Aston Ward (Bradgate Unit),HCL NURSING,HNSI0000145,211.93
Department of Health,Leicestershire Partnership NHS Trust,23/09/19,NURSE - BAND 5 - AGENCY,Aston Ward (Bradgate Unit),HCL NURSING,HNSI0000145,659.63
Department of Health,Leicestershire Partnership NHS Trust,23/09/19,NURSE - BAND 2 - AGENCY,Beaumont Ward - Bradgate Unit,HCL NURSING,HNSI0000145,518.25
Department of Health,Leicestershire Partnership NHS Trust,23/09/19,NURSE - BAND 5 - AGENCY,Beaumont Ward - Bradgate Unit,HCL NURSING,HNSI0000145,1430.12
Department of Health,Leicestershire Partnership NHS Trust,23/09/19,NURSE - BAND 2 - AGENCY,Belvoir Psychiatric Intensive Care Unit,HCL NURSING,HNSI0000145,3398.93
Department of Health,Leicestershire Partnership NHS Trust,23/09/19,NURSE - BAND 5 - AGENCY,Belvoir Psychiatric Intensive Care Unit,HCL NURSING,HNSI0000145,3552.52
Department of Health,Leicestershire Partnership NHS Trust,23/09/19,NURSE - BAND 2 - AGENCY,Bosworth Ward - Bradgate Unit,HCL NURSING,HNSI0000145,113.89
Department of Health,Leicestershire Partnership NHS Trust,23/09/19,NURSE - BAND 5 - AGENCY,Bosworth Ward - Bradgate Unit,HCL NURSING,HNSI0000145,329.81
Department of Health,Leicestershire Partnership NHS Trust,23/09/19,Nurse - Band 6 -Agency,Crisis Resolution,HCL NURSING,HNSI0000145,4631.47
Department of Health,Leicestershire Partnership NHS Trust,23/09/19,NURSE - BAND 2 - AGENCY,Griffin Ward (HPC),HCL NURSING,HNSI0000145,111.43
Department of Health,Leicestershire Partnership NHS Trust,23/09/19,NURSE - BAND 5 - AGENCY,Griffin Ward (HPC),HCL NURSING,HNSI0000145,4999.00
Department of Health,Leicestershire Partnership NHS Trust,23/09/19,NURSE - BAND 2 - AGENCY,Heather Ward,HCL NURSING,HNSI0000145,538.31
Department of Health,Leicestershire Partnership NHS Trust,23/09/19,NURSE - BAND 5 - AGENCY,Heather Ward,HCL NURSING,HNSI0000145,756.51
Department of Health,Leicestershire Partnership NHS Trust,23/09/19,Nurse - Band 6 -Agency,Mental Health Triage Team,HCL NURSING,HNSI0000145,675.76
Department of Health,Leicestershire Partnership NHS Trust,23/09/19,NURSE - BAND 2 - AGENCY,Mill Lodge,HCL NURSING,HNSI0000145,701.35
Department of Health,Leicestershire Partnership NHS Trust,23/09/19,NURSE - BAND 5 - AGENCY,Mill Lodge,HCL NURSING,HNSI0000145,898.70
Department of Health,Leicestershire Partnership NHS Trust,23/09/19,NURSE - BAND 2 - AGENCY,Phoenix Ward (HPC),HCL NURSING,HNSI0000145,296.54
Department of Health,Leicestershire Partnership NHS Trust,23/09/19,NURSE - BAND 5 - AGENCY,Stewart House,HCL NURSING,HNSI0000145,579.23
Department of Health,Leicestershire Partnership NHS Trust,23/09/19,NURSE - BAND 2 - AGENCY,Thornton Ward - Bradgate Unit,HCL NURSING,HNSI0000145,360.36
Department of Health,Leicestershire Partnership NHS Trust,23/09/19,NURSE - BAND 2 - AGENCY,Watermead Ward (Bradgate Unit),HCL NURSING,HNSI0000145,846.14
Department of Health,Leicestershire Partnership NHS Trust,23/09/19,NURSE - BAND 5 - AGENCY,Watermead Ward (Bradgate Unit),HCL NURSING,HNSI0000145,339.96
Department of Health,Leicestershire Partnership NHS Trust,23/09/19,Med GP Trainees,Medical Trainees,ST.HELENS & KNOWSLEY NHS TRUST,16788791,60000.00
Department of Health,Leicestershire Partnership NHS Trust,23/09/19,Rent,County Hall,LEIC COUNTY COUNCIL,6282369,34488.50
Department of Health,Leicestershire Partnership NHS Trust,24/09/19,Payroll Deductions -Salary Sacrifice Cars Scheme,Balance Sheet Collection,TUSKER,21807,35665.04
Department of Health,Leicestershire Partnership NHS Trust,24/09/19,NURSE - BAND 2 - AGENCY,Beechwood Ward,HCL NURSING,HNSI0000139,560.42
Department of Health,Leicestershire Partnership NHS Trust,24/09/19,NURSE - BAND 5 - AGENCY,Beechwood Ward,HCL NURSING,HNSI0000139,2175.11
Department of Health,Leicestershire Partnership NHS Trust,24/09/19,NURSE - BAND 5 - AGENCY,City ICS,HCL NURSING,HNSI0000139,1814.21
Department of Health,Leicestershire Partnership NHS Trust,24/09/19,NURSE - BAND 5 - AGENCY,City Planned Care - East,HCL NURSING,HNSI0000139,12941.18
Department of Health,Leicestershire Partnership NHS Trust,24/09/19,NURSE - BAND 5 - AGENCY,City Planned Care - West,HCL NURSING,HNSI0000139,7910.45
Department of Health,Leicestershire Partnership NHS Trust,24/09/19,Nurse - Band 6 -Agency,City West CMHT MHSOP,HCL NURSING,HNSI0000139,1069.88
Department of Health,Leicestershire Partnership NHS Trust,24/09/19,NURSE - BAND 2 - AGENCY,Clarendon Ward,HCL NURSING,HNSI0000139,1061.74
Department of Health,Leicestershire Partnership NHS Trust,24/09/19,NURSE - BAND 5 - AGENCY,Clarendon Ward,HCL NURSING,HNSI0000139,1379.06
Department of Health,Leicestershire Partnership NHS Trust,24/09/19,NURSE - BAND 2 - AGENCY,Coalville Snibston Ward,HCL NURSING,HNSI0000139,1203.49
Department of Health,Leicestershire Partnership NHS Trust,24/09/19,NURSE - BAND 2 - AGENCY,Coleman Ward,HCL NURSING,HNSI0000139,371.02
Department of Health,Leicestershire Partnership NHS Trust,24/09/19,NURSE - BAND 5 - AGENCY,"East Planned Care - Oadby,Wigston & Harborough",HCL NURSING,HNSI0000139,1844.87
Department of Health,Leicestershire Partnership NHS Trust,24/09/19,NURSE - BAND 5 - AGENCY,Evening Service,HCL NURSING,HNSI0000139,217.49
Department of Health,Leicestershire Partnership NHS Trust,24/09/19,NURSE - BAND 5 - AGENCY,Fielding Palmer Nursing,HCL NURSING,HNSI0000139,2714.30
Department of Health,Leicestershire Partnership NHS Trust,24/09/19,NURSE - BAND 5 - AGENCY,H&B Comm Hosp East Ward,HCL NURSING,HNSI0000139,1993.83
Department of Health,Leicestershire Partnership NHS Trust,24/09/19,NURSE - BAND 2 - AGENCY,H&B Comm Hosp North Ward,HCL NURSING,HNSI0000139,2120.12
Department of Health,Leicestershire Partnership NHS Trust,24/09/19,NURSE - BAND 5 - AGENCY,H&B Comm Hosp North Ward,HCL NURSING,HNSI0000139,1476.73
Department of Health,Leicestershire Partnership NHS Trust,24/09/19,NURSE - BAND 2 - AGENCY,Kirby Ward,HCL NURSING,HNSI0000139,825.20
Department of Health,Leicestershire Partnership NHS Trust,24/09/19,NURSE - BAND 5 - AGENCY,Kirby Ward,HCL NURSING,HNSI0000139,361.19
Department of Health,Leicestershire Partnership NHS Trust,24/09/19,NURSE - BAND 2 - AGENCY,Lough Swithland Ward,HCL NURSING,HNSI0000139,663.44
Department of Health,Leicestershire Partnership NHS Trust,24/09/19,NURSE - BAND 5 - AGENCY,Lough Swithland Ward,HCL NURSING,HNSI0000139,393.35
Department of Health,Leicestershire Partnership NHS Trust,24/09/19,NURSE - BAND 5 - AGENCY,South East ICS,HCL NURSING,HNSI0000139,4018.16
Department of Health,Leicestershire Partnership NHS Trust,24/09/19,NURSE - BAND 2 - AGENCY,St Lukes Stroke Ward,HCL NURSING,HNSI0000139,474.70
Department of Health,Leicestershire Partnership NHS Trust,24/09/19,NURSE - BAND 5 - AGENCY,St Lukes Stroke Ward,HCL NURSING,HNSI0000139,788.02
Department of Health,Leicestershire Partnership NHS Trust,24/09/19,NURSE - BAND 2 - AGENCY,St Lukes Ward 3,HCL NURSING,HNSI0000139,451.50
Department of Health,Leicestershire Partnership NHS Trust,24/09/19,NURSE - BAND 5 - AGENCY,St Lukes Ward 3,HCL NURSING,HNSI0000139,500.05
Department of Health,Leicestershire Partnership NHS Trust,24/09/19,NURSE - BAND 2 - AGENCY,Beechwood Ward,HCL NURSING,HNSI0000146,1146.38
Department of Health,Leicestershire Partnership NHS Trust,24/09/19,NURSE - BAND 5 - AGENCY,Beechwood Ward,HCL NURSING,HNSI0000146,2241.75
Department of Health,Leicestershire Partnership NHS Trust,24/09/19,NURSE - BAND 5 - AGENCY,City ICS,HCL NURSING,HNSI0000146,2749.42
Department of Health,Leicestershire Partnership NHS Trust,24/09/19,NURSE - BAND 5 - AGENCY,City Planned Care - East,HCL NURSING,HNSI0000146,11566.23
Department of Health,Leicestershire Partnership NHS Trust,24/09/19,NURSE - BAND 5 - AGENCY,City Planned Care - West,HCL NURSING,HNSI0000146,8882.45
Department of Health,Leicestershire Partnership NHS Trust,24/09/19,Nurse - Band 6 -Agency,City West CMHT MHSOP,HCL NURSING,HNSI0000146,1069.88
Department of Health,Leicestershire Partnership NHS Trust,24/09/19,NURSE - BAND 2 - AGENCY,Clarendon Ward,HCL NURSING,HNSI0000146,614.77
Department of Health,Leicestershire Partnership NHS Trust,24/09/19,NURSE - BAND 5 - AGENCY,Clarendon Ward,HCL NURSING,HNSI0000146,510.56
Department of Health,Leicestershire Partnership NHS Trust,24/09/19,NURSE - BAND 2 - AGENCY,Coalville Snibston Ward,HCL NURSING,HNSI0000146,1024.67
Department of Health,Leicestershire Partnership NHS Trust,24/09/19,NURSE - BAND 5 - AGENCY,Coalville Ward 2,HCL NURSING,HNSI0000146,423.57
Department of Health,Leicestershire Partnership NHS Trust,24/09/19,NURSE - BAND 5 - AGENCY,"East Planned Care - Oadby,Wigston & Harborough",HCL NURSING,HNSI0000146,2083.34
Department of Health,Leicestershire Partnership NHS Trust,24/09/19,NURSE - BAND 5 - AGENCY,Evening Service,HCL NURSING,HNSI0000146,347.83
Department of Health,Leicestershire Partnership NHS Trust,24/09/19,NURSE - BAND 5 - AGENCY,Fielding Palmer Nursing,HCL NURSING,HNSI0000146,3273.36
Department of Health,Leicestershire Partnership NHS Trust,24/09/19,NURSE - BAND 2 - AGENCY,Gwendolen Ward,HCL NURSING,HNSI0000146,54.52
Department of Health,Leicestershire Partnership NHS Trust,24/09/19,NURSE - BAND 5 - AGENCY,Gwendolen Ward,HCL NURSING,HNSI0000146,302.58
Department of Health,Leicestershire Partnership NHS Trust,24/09/19,NURSE - BAND 2 - AGENCY,H&B Comm Hosp East Ward,HCL NURSING,HNSI0000146,328.12
Department of Health,Leicestershire Partnership NHS Trust,24/09/19,NURSE - BAND 5 - AGENCY,H&B Comm Hosp East Ward,HCL NURSING,HNSI0000146,329.81
Department of Health,Leicestershire Partnership NHS Trust,24/09/19,NURSE - BAND 2 - AGENCY,H&B Comm Hosp North Ward,HCL NURSING,HNSI0000146,1135.83
Department of Health,Leicestershire Partnership NHS Trust,24/09/19,NURSE - BAND 5 - AGENCY,H&B Comm Hosp North Ward,HCL NURSING,HNSI0000146,557.03
Department of Health,Leicestershire Partnership NHS Trust,24/09/19,NURSE - BAND 5 - AGENCY,Kirby Ward,HCL NURSING,HNSI0000146,952.32
Department of Health,Leicestershire Partnership NHS Trust,24/09/19,Nurse - Band 6 -Agency,MHSOP Integrated Care Team,HCL NURSING,HNSI0000146,836.93
Department of Health,Leicestershire Partnership NHS Trust,24/09/19,NURSE - BAND 5 - AGENCY,Rutland Ward Nursing,HCL NURSING,HNSI0000146,1150.56
Department of Health,Leicestershire Partnership NHS Trust,24/09/19,NURSE - BAND 5 - AGENCY,South East ICS,HCL NURSING,HNSI0000146,2997.88
Department of Health,Leicestershire Partnership NHS Trust,24/09/19,NURSE - BAND 5 - AGENCY,St Lukes Stroke Ward,HCL NURSING,HNSI0000146,749.91
Department of Health,Leicestershire Partnership NHS Trust,24/09/19,NURSE - BAND 2 - AGENCY,St Lukes Ward 3,HCL NURSING,HNSI0000146,239.57
Department of Health,Leicestershire Partnership NHS Trust,24/09/19,NURSE - BAND 5 - AGENCY,St Lukes Ward 3,HCL NURSING,HNSI0000146,1346.25
Department of Health,Leicestershire Partnership NHS Trust,24/09/19,NURSE - BAND 2 - AGENCY,Welford Ward,HCL NURSING,HNSI0000146,141.76
Department of Health,Leicestershire Partnership NHS Trust,24/09/19,NURSE - BAND 5 - AGENCY,Welford Ward,HCL NURSING,HNSI0000146,302.58
Department of Health,Leicestershire Partnership NHS Trust,24/09/19,NURSE - BAND 5 - AGENCY,West Planned Care  - Hinckley Hub,HCL NURSING,HNSI0000146,16.93
Department of Health,Leicestershire Partnership NHS Trust,25/09/19,FP10'S,Adult City Central CMHT - St Peters,NHS BUS SERVICES AUTHORITY,1000061365,163.79
Department of Health,Leicestershire Partnership NHS Trust,25/09/19,FP10'S,Adult City Drugs,NHS BUS SERVICES AUTHORITY,1000061365,22616.87
Department of Health,Leicestershire Partnership NHS Trust,25/09/19,FP10'S,Adult County Drugs,NHS BUS SERVICES AUTHORITY,1000061365,29687.78
Department of Health,Leicestershire Partnership NHS Trust,25/09/19,FP10'S,CAMHS County Outpatients,NHS BUS SERVICES AUTHORITY,1000061365,12362.82
Department of Health,Leicestershire Partnership NHS Trust,25/09/19,FP10'S,Children Services Medical,NHS BUS SERVICES AUTHORITY,1000061365,5813.87
Department of Health,Leicestershire Partnership NHS Trust,25/09/19,FP10'S,Dementia Related Drugs and Investigations,NHS BUS SERVICES AUTHORITY,1000061365,4679.39
Department of Health,Leicestershire Partnership NHS Trust,25/09/19,FP10'S,Eating Disorders Outpatient Service,NHS BUS SERVICES AUTHORITY,1000061365,178.82
Department of Health,Leicestershire Partnership NHS Trust,25/09/19,FP10'S,Forensic Services - Community,NHS BUS SERVICES AUTHORITY,1000061365,148.51
Department of Health,Leicestershire Partnership NHS Trust,25/09/19,FP10'S,Leicestershire Psych-oncology Service,NHS BUS SERVICES AUTHORITY,1000061365,157.68
Department of Health,Leicestershire Partnership NHS Trust,25/09/19,FP10'S,Lough Swithland Ward,NHS BUS SERVICES AUTHORITY,1000061365,1.33
Department of Health,Leicestershire Partnership NHS Trust,25/09/19,FP10'S,PIER Team - Early Intervention Services,NHS BUS SERVICES AUTHORITY,1000061365,12158.62
Department of Health,Leicestershire Partnership NHS Trust,25/09/19,FP10'S,Pharmacy,NHS BUS SERVICES AUTHORITY,1000061365,2274.95
Department of Health,Leicestershire Partnership NHS Trust,25/09/19,FP10'S,Snr Med Staff (Inc Med Reps),NHS BUS SERVICES AUTHORITY,1000061365,2807.58
Department of Health,Leicestershire Partnership NHS Trust,25/09/19,Contract : Accomodation,Out of County Income - Inpateints Project,TURNING POINT,SI-TPS-00024476,47507.58
Department of Health,Leicestershire Partnership NHS Trust,25/09/19,Leased / Hired Vehicles,Assertive Outreach Services,AUTOMOTIVE LEASING LTD,505852766,100.00
Department of Health,Leicestershire Partnership NHS Trust,25/09/19,Prep_ LT1y -Prepayments Lease Cars,Balance Sheet Collection,AUTOMOTIVE LEASING LTD,505852766,50247.75
Department of Health,Leicestershire Partnership NHS Trust,25/09/19,Trade_Drs_LT1y -Lease Cars Invoicing Contrl Ac.,Balance Sheet Collection,AUTOMOTIVE LEASING LTD,505852766,1059.10
Department of Health,Leicestershire Partnership NHS Trust,25/09/19,Leased / Hired Vehicles,City Planned Care - East,AUTOMOTIVE LEASING LTD,505852766,551.60
Department of Health,Leicestershire Partnership NHS Trust,25/09/19,Leased / Hired Vehicles,County 0-19 South Charnwood HV,AUTOMOTIVE LEASING LTD,505852766,90.00
Department of Health,Leicestershire Partnership NHS Trust,25/09/19,Leased / Hired Vehicles,Countywide Memory Service,AUTOMOTIVE LEASING LTD,505852766,418.72
Department of Health,Leicestershire Partnership NHS Trust,25/09/19,Leased / Hired Vehicles,East Community Therapy,AUTOMOTIVE LEASING LTD,505852766,92.48
Department of Health,Leicestershire Partnership NHS Trust,25/09/19,Leased / Hired Vehicles,LD County Nursing,AUTOMOTIVE LEASING LTD,505852766,322.78
Department of Health,Leicestershire Partnership NHS Trust,25/09/19,Leased / Hired Vehicles,North West ICS,AUTOMOTIVE LEASING LTD,505852766,315.92
Department of Health,Leicestershire Partnership NHS Trust,25/09/19,Leased / Hired Vehicles,West Community Therapy,AUTOMOTIVE LEASING LTD,505852766,240.00
Department of Health,Leicestershire Partnership NHS Trust,25/09/19,Leased / Hired Vehicles,West Planned Care  - Hinckley Hub,AUTOMOTIVE LEASING LTD,505852766,512.00
Department of Health,Leicestershire Partnership NHS Trust,25/09/19,Leased / Hired Vehicles,West Planned Care - NWL Hub,AUTOMOTIVE LEASING LTD,505852766,19.00
Department of Health,Leicestershire Partnership NHS Trust,27/09/19,CHP Estates Management,Belgrave Health Centre (CHP),COMM HLTH PARTNERSHIPS LTD,0060124023,9466.11
Department of Health,Leicestershire Partnership NHS Trust,27/09/19,CHP Estates Management,Merlyn Vaz Centre (CHP),COMM HLTH PARTNERSHIPS LTD,0060124023,57461.09
Department of Health,Leicestershire Partnership NHS Trust,27/09/19,CHP Estates Management,Westcotes Health Centre (CHP),COMM HLTH PARTNERSHIPS LTD,0060124023,12018.80
Department of Health,Leicestershire Partnership NHS Trust,27/09/19,Nurse - Band 6 -Agency,Adult City East CMHT - Merlyn Vaz,HCL NURSING,HNSI0000153,2868.36
Department of Health,Leicestershire Partnership NHS Trust,27/09/19,Nurse - Band 6 -Agency,Adult County Charnwood CMHT - Loughborough Base,HCL NURSING,HNSI0000153,213.98
Department of Health,Leicestershire Partnership NHS Trust,27/09/19,NURSE - BAND 2 - AGENCY,Agnes Unit Management,HCL NURSING,HNSI0000153,548.67
Department of Health,Leicestershire Partnership NHS Trust,27/09/19,NURSE - BAND 5 - AGENCY,Agnes Unit Management,HCL NURSING,HNSI0000153,2163.11
Department of Health,Leicestershire Partnership NHS Trust,27/09/19,NURSE - BAND 5 - AGENCY,Ashby Ward (Bradgate Unit),HCL NURSING,HNSI0000153,339.96
Department of Health,Leicestershire Partnership NHS Trust,27/09/19,NURSE - BAND 2 - AGENCY,Aston Ward (Bradgate Unit),HCL NURSING,HNSI0000153,379.53
Department of Health,Leicestershire Partnership NHS Trust,27/09/19,NURSE - BAND 5 - AGENCY,Aston Ward (Bradgate Unit),HCL NURSING,HNSI0000153,660.10
Department of Health,Leicestershire Partnership NHS Trust,27/09/19,NURSE - BAND 2 - AGENCY,Beaumont Ward - Bradgate Unit,HCL NURSING,HNSI0000153,359.66
Department of Health,Leicestershire Partnership NHS Trust,27/09/19,NURSE - BAND 5 - AGENCY,Beaumont Ward - Bradgate Unit,HCL NURSING,HNSI0000153,426.69
Department of Health,Leicestershire Partnership NHS Trust,27/09/19,NURSE - BAND 2 - AGENCY,Belvoir Psychiatric Intensive Care Unit,HCL NURSING,HNSI0000153,2630.95
Department of Health,Leicestershire Partnership NHS Trust,27/09/19,NURSE - BAND 5 - AGENCY,Belvoir Psychiatric Intensive Care Unit,HCL NURSING,HNSI0000153,2616.01
Department of Health,Leicestershire Partnership NHS Trust,27/09/19,NURSE - BAND 5 - AGENCY,Bosworth Ward - Bradgate Unit,HCL NURSING,HNSI0000153,637.14
Department of Health,Leicestershire Partnership NHS Trust,27/09/19,NURSE - BAND 2 - AGENCY,Cedar (Willows),HCL NURSING,HNSI0000153,467.37
Department of Health,Leicestershire Partnership NHS Trust,27/09/19,Nurse - Band 6 -Agency,Crisis Resolution,HCL NURSING,HNSI0000153,7013.99
Department of Health,Leicestershire Partnership NHS Trust,27/09/19,NURSE - BAND 2 - AGENCY,Griffin Ward (HPC),HCL NURSING,HNSI0000153,339.40
Department of Health,Leicestershire Partnership NHS Trust,27/09/19,NURSE - BAND 5 - AGENCY,Griffin Ward (HPC),HCL NURSING,HNSI0000153,2714.15
Department of Health,Leicestershire Partnership NHS Trust,27/09/19,NURSE - BAND 2 - AGENCY,Heather Ward,HCL NURSING,HNSI0000153,958.17
Department of Health,Leicestershire Partnership NHS Trust,27/09/19,NURSE - BAND 5 - AGENCY,Heather Ward,HCL NURSING,HNSI0000153,2486.68
Department of Health,Leicestershire Partnership NHS Trust,27/09/19,Nurse - Band 6 -Agency,Leicestershire Psych-oncology Service,HCL NURSING,HNSI0000153,855.90
Department of Health,Leicestershire Partnership NHS Trust,27/09/19,Nurse - Band 6 -Agency,Mental Health Triage Team,HCL NURSING,HNSI0000153,977.17
Department of Health,Leicestershire Partnership NHS Trust,27/09/19,NURSE - BAND 2 - AGENCY,Mill Lodge,HCL NURSING,HNSI0000153,403.74
Department of Health,Leicestershire Partnership NHS Trust,27/09/19,NURSE - BAND 5 - AGENCY,Mill Lodge,HCL NURSING,HNSI0000153,890.49
Department of Health,Leicestershire Partnership NHS Trust,27/09/19,NURSE - BAND 2 - AGENCY,Phoenix Ward (HPC),HCL NURSING,HNSI0000153,168.41
Department of Health,Leicestershire Partnership NHS Trust,27/09/19,NURSE - BAND 2 - AGENCY,Thornton Ward - Bradgate Unit,HCL NURSING,HNSI0000153,398.61
Department of Health,Leicestershire Partnership NHS Trust,27/09/19,NURSE - BAND 5 - AGENCY,Thornton Ward - Bradgate Unit,HCL NURSING,HNSI0000153,320.14
Department of Health,Leicestershire Partnership NHS Trust,27/09/19,NURSE - BAND 2 - AGENCY,Watermead Ward (Bradgate Unit),HCL NURSING,HNSI0000153,130.54
Department of Health,Leicestershire Partnership NHS Trust,27/09/19,NURSE - BAND 2 - AGENCY,Beechwood Ward,HCL NURSING,HNSI0000154,239.57
Department of Health,Leicestershire Partnership NHS Trust,27/09/19,NURSE - BAND 5 - AGENCY,City ICS,HCL NURSING,HNSI0000154,667.32
Department of Health,Leicestershire Partnership NHS Trust,27/09/19,NURSE - BAND 5 - AGENCY,City Planned Care - East,HCL NURSING,HNSI0000154,9986.91
Department of Health,Leicestershire Partnership NHS Trust,27/09/19,NURSE - BAND 5 - AGENCY,City Planned Care - West,HCL NURSING,HNSI0000154,9996.20
Department of Health,Leicestershire Partnership NHS Trust,27/09/19,Nurse - Band 6 -Agency,City West CMHT MHSOP,HCL NURSING,HNSI0000154,1069.88
Department of Health,Leicestershire Partnership NHS Trust,27/09/19,NURSE - BAND 2 - AGENCY,Clarendon Ward,HCL NURSING,HNSI0000154,1152.56
Department of Health,Leicestershire Partnership NHS Trust,27/09/19,NURSE - BAND 2 - AGENCY,Coalville Snibston Ward,HCL NURSING,HNSI0000154,211.93
Department of Health,Leicestershire Partnership NHS Trust,27/09/19,NURSE - BAND 2 - AGENCY,Coalville Ward 2,HCL NURSING,HNSI0000154,141.76
Department of Health,Leicestershire Partnership NHS Trust,27/09/19,NURSE - BAND 5 - AGENCY,Coalville Ward 2,HCL NURSING,HNSI0000154,386.06
Department of Health,Leicestershire Partnership NHS Trust,27/09/19,NURSE - BAND 2 - AGENCY,Coleman Ward,HCL NURSING,HNSI0000154,94.50
Department of Health,Leicestershire Partnership NHS Trust,27/09/19,NURSE - BAND 5 - AGENCY,Coleman Ward,HCL NURSING,HNSI0000154,462.05
Department of Health,Leicestershire Partnership NHS Trust,27/09/19,NURSE - BAND 5 - AGENCY,"East Planned Care - Oadby,Wigston & Harborough",HCL NURSING,HNSI0000154,2307.71
Department of Health,Leicestershire Partnership NHS Trust,27/09/19,NURSE - BAND 5 - AGENCY,Fielding Palmer Nursing,HCL NURSING,HNSI0000154,2494.54
Department of Health,Leicestershire Partnership NHS Trust,27/09/19,NURSE - BAND 2 - AGENCY,Gwendolen Ward,HCL NURSING,HNSI0000154,187.31
Department of Health,Leicestershire Partnership NHS Trust,27/09/19,NURSE - BAND 2 - AGENCY,H&B Comm Hosp East Ward,HCL NURSING,HNSI0000154,1191.21
Department of Health,Leicestershire Partnership NHS Trust,27/09/19,NURSE - BAND 5 - AGENCY,H&B Comm Hosp East Ward,HCL NURSING,HNSI0000154,1473.87
Department of Health,Leicestershire Partnership NHS Trust,27/09/19,NURSE - BAND 2 - AGENCY,H&B Comm Hosp North Ward,HCL NURSING,HNSI0000154,1109.70
Department of Health,Leicestershire Partnership NHS Trust,27/09/19,NURSE - BAND 5 - AGENCY,H&B Comm Hosp North Ward,HCL NURSING,HNSI0000154,514.90
Department of Health,Leicestershire Partnership NHS Trust,27/09/19,NURSE - BAND 2 - AGENCY,Kirby Ward,HCL NURSING,HNSI0000154,1257.75
Department of Health,Leicestershire Partnership NHS Trust,27/09/19,NURSE - BAND 5 - AGENCY,Kirby Ward,HCL NURSING,HNSI0000154,605.16
Department of Health,Leicestershire Partnership NHS Trust,27/09/19,NURSE - BAND 5 - AGENCY,Lough Swithland Ward,HCL NURSING,HNSI0000154,510.56
Department of Health,Leicestershire Partnership NHS Trust,27/09/19,Nurse - Band 6 -Agency,MHSOP Integrated Care Team,HCL NURSING,HNSI0000154,836.93
Department of Health,Leicestershire Partnership NHS Trust,27/09/19,NURSE - BAND 5 - AGENCY,North West ICS,HCL NURSING,HNSI0000154,762.31
Department of Health,Leicestershire Partnership NHS Trust,27/09/19,NURSE - BAND 2 - AGENCY,Rutland Ward Nursing,HCL NURSING,HNSI0000154,172.22
Department of Health,Leicestershire Partnership NHS Trust,27/09/19,NURSE - BAND 5 - AGENCY,Rutland Ward Nursing,HCL NURSING,HNSI0000154,1019.55
Department of Health,Leicestershire Partnership NHS Trust,27/09/19,NURSE - BAND 5 - AGENCY,South East ICS,HCL NURSING,HNSI0000154,3533.30
Department of Health,Leicestershire Partnership NHS Trust,27/09/19,NURSE - BAND 2 - AGENCY,St Lukes Stroke Ward,HCL NURSING,HNSI0000154,113.77
Department of Health,Leicestershire Partnership NHS Trust,27/09/19,NURSE - BAND 5 - AGENCY,St Lukes Stroke Ward,HCL NURSING,HNSI0000154,329.81
Department of Health,Leicestershire Partnership NHS Trust,27/09/19,NURSE - BAND 2 - AGENCY,St Lukes Ward 3,HCL NURSING,HNSI0000154,423.87
Department of Health,Leicestershire Partnership NHS Trust,27/09/19,NURSE - BAND 5 - AGENCY,St Lukes Ward 3,HCL NURSING,HNSI0000154,2269.68
Department of Health,Leicestershire Partnership NHS Trust,27/09/19,NURSE - BAND 2 - AGENCY,Welford Ward,HCL NURSING,HNSI0000154,495.29
Department of Health,Leicestershire Partnership NHS Trust,27/09/19,NURSE - BAND 5 - AGENCY,Welford Ward,HCL NURSING,HNSI0000154,404.50
Department of Health,Leicestershire Partnership NHS Trust,27/09/19,Pathology Service,CHS Inpatient Management,UHL NHS TRUST (RWE),L0232857,4825.95
Department of Health,Leicestershire Partnership NHS Trust,27/09/19,Pathology Service,Children Services Medical,UHL NHS TRUST (RWE),L0232857,10932.70
Department of Health,Leicestershire Partnership NHS Trust,27/09/19,Pathology Service,UHL Expenditure Contract,UHL NHS TRUST (RWE),L0232857,10192.66
Department of Health,Leicestershire Partnership NHS Trust,27/09/19,Nurse - Band 6 -Agency,Adult City East CMHT - Merlyn Vaz,HCL NURSING,HNSI0000131,2707.57
Department of Health,Leicestershire Partnership NHS Trust,27/09/19,Nurse - Band 6 -Agency,Adult County Charnwood CMHT - Loughborough Base,HCL NURSING,HNSI0000131,1925.78
Department of Health,Leicestershire Partnership NHS Trust,27/09/19,NURSE - BAND 2 - AGENCY,Agnes Unit Management,HCL NURSING,HNSI0000131,142.36
Department of Health,Leicestershire Partnership NHS Trust,27/09/19,NURSE - BAND 5 - AGENCY,Agnes Unit Management,HCL NURSING,HNSI0000131,1587.26
Department of Health,Leicestershire Partnership NHS Trust,27/09/19,NURSE - BAND 2 - AGENCY,Ashby Ward (Bradgate Unit),HCL NURSING,HNSI0000131,180.50
Department of Health,Leicestershire Partnership NHS Trust,27/09/19,NURSE - BAND 2 - AGENCY,Aston Ward (Bradgate Unit),HCL NURSING,HNSI0000131,775.26
Department of Health,Leicestershire Partnership NHS Trust,27/09/19,NURSE - BAND 2 - AGENCY,Beaumont Ward - Bradgate Unit,HCL NURSING,HNSI0000131,1043.63
Department of Health,Leicestershire Partnership NHS Trust,27/09/19,NURSE - BAND 5 - AGENCY,Beaumont Ward - Bradgate Unit,HCL NURSING,HNSI0000131,724.99
Department of Health,Leicestershire Partnership NHS Trust,27/09/19,NURSE - BAND 2 - AGENCY,Belvoir Psychiatric Intensive Care Unit,HCL NURSING,HNSI0000131,2369.89
Department of Health,Leicestershire Partnership NHS Trust,27/09/19,NURSE - BAND 5 - AGENCY,Belvoir Psychiatric Intensive Care Unit,HCL NURSING,HNSI0000131,1649.07
Department of Health,Leicestershire Partnership NHS Trust,27/09/19,NURSE - BAND 2 - AGENCY,Bosworth Ward - Bradgate Unit,HCL NURSING,HNSI0000131,328.31
Department of Health,Leicestershire Partnership NHS Trust,27/09/19,Nurse - Band 6 -Agency,Crisis Resolution,HCL NURSING,HNSI0000131,1901.48
Department of Health,Leicestershire Partnership NHS Trust,27/09/19,NURSE - BAND 2 - AGENCY,Griffin Ward (HPC),HCL NURSING,HNSI0000131,387.71
Department of Health,Leicestershire Partnership NHS Trust,27/09/19,NURSE - BAND 5 - AGENCY,Griffin Ward (HPC),HCL NURSING,HNSI0000131,4535.85
Department of Health,Leicestershire Partnership NHS Trust,27/09/19,NURSE - BAND 2 - AGENCY,Heather Ward,HCL NURSING,HNSI0000131,923.13
Department of Health,Leicestershire Partnership NHS Trust,27/09/19,NURSE - BAND 5 - AGENCY,Heather Ward,HCL NURSING,HNSI0000131,710.33
Department of Health,Leicestershire Partnership NHS Trust,27/09/19,Nurse - Band 6 -Agency,Leicestershire Psych-oncology Service,HCL NURSING,HNSI0000131,427.95
Department of Health,Leicestershire Partnership NHS Trust,27/09/19,Nurse - Band 6 -Agency,Mental Health Triage Team,HCL NURSING,HNSI0000131,4415.67
Department of Health,Leicestershire Partnership NHS Trust,27/09/19,NURSE - BAND 2 - AGENCY,Mill Lodge,HCL NURSING,HNSI0000131,1679.16
Department of Health,Leicestershire Partnership NHS Trust,27/09/19,NURSE - BAND 5 - AGENCY,Mill Lodge,HCL NURSING,HNSI0000131,851.92
Department of Health,Leicestershire Partnership NHS Trust,27/09/19,NURSE - BAND 2 - AGENCY,Phoenix Ward (HPC),HCL NURSING,HNSI0000131,228.70
Department of Health,Leicestershire Partnership NHS Trust,27/09/19,NURSE - BAND 2 - AGENCY,Stewart House,HCL NURSING,HNSI0000131,192.22
Department of Health,Leicestershire Partnership NHS Trust,27/09/19,NURSE - BAND 5 - AGENCY,Stewart House,HCL NURSING,HNSI0000131,752.88
Department of Health,Leicestershire Partnership NHS Trust,27/09/19,NURSE - BAND 2 - AGENCY,Sycamore (Willows),HCL NURSING,HNSI0000131,211.12
Department of Health,Leicestershire Partnership NHS Trust,27/09/19,NURSE - BAND 2 - AGENCY,Thornton Ward - Bradgate Unit,HCL NURSING,HNSI0000131,274.19
Department of Health,Leicestershire Partnership NHS Trust,27/09/19,NURSE - BAND 2 - AGENCY,Watermead Ward (Bradgate Unit),HCL NURSING,HNSI0000131,392.00
Department of Health,Leicestershire Partnership NHS Trust,27/09/19,NURSE - BAND 5 - AGENCY,Watermead Ward (Bradgate Unit),HCL NURSING,HNSI0000131,669.77
